Cogmind - Beta 15 @@@ ROGUE MODE // 2025.06.07 @ 23:21:05 // Winter2022/Polymind Player: Epsilon 11 Result: Destroyed by Y-45 Defender with Beam Rifle Performance ------------- Evolutions (0) 0 Regions Visited (3) 600 Robots Destroyed (4) 20 Value Destroyed (90) 90 Prototype IDs (0) 0 Alien Tech Used (0) 0 Bonus (2042) 2042 TOTAL SCORE: 1952 Bonus ------- Polymind Skill 1860 Follower Combat Kills 182 Cogmind --------- Core Integrity 0/250 Matter 0/0 Energy 98/100 System Corruption 1% Temperature Cool (9) Movement Core (50) Location -8/Recycling Parts ------- > --- POWER (1) -------- (None) > --- PROPULSION (1) --- (None) > --- UTILITY (4) ------ (None) > --- WEAPON (1) ------- (None) > --- INVENTORY (0) ---- (None) Peak State ------------ > --- POWER ------------ Subdweller Power Source > --- PROPULSION ------- Subdweller Monowheel > --- UTILITY ---------- Disposable Heat Sink Subdweller Optics Scrap Shield > --- WEAPON ----------- Subdweller Laser > --- INVENTORY -------- Scrap Shield Fragment [Rating: 14] Favorites ----------- Power Light Ion Engine Engine Light Ion Engine Propulsion Wheel Wheel Wheel Flight Unit Flight Unit Utility Improved Terrain Scanner Device Improved Terrain Scanner Protection Scrap Shield Weapon Mining Laser Energy Gun Subdweller Laser Ballistic Gun Light Assault Rifle Special Weapon Mining Laser Build | -11 -10 -10 -8 ------- Run | Yrd Mat Sub Rec Slots Evolved . | . . . . Power . | . . . . Propulsion . | . . . . Utility . | . . . . Weapon . | . . . . Parts Attached . | . . . . Power . | . . . . Engine . | . . . . Core . | . . . . Reactor . | . . . . Propulsion . | . . . . Treads . | . . . . Leg . | . . . . Wheel . | . . . . Hover . | . . . . Flight . | . . . . Utility . | . . . . Device . | . . . . Storage . | . . . . Processor . | . . . . Hackware . | . . . . Protection . | . . . . Artifact . | . . . . Weapon . | . . . . Energy Gun . | . . . . Energy Cannon . | . . . . Ballistic Gun . | . . . . Ballistic Cannon . | . . . . Launcher . | . . . . Special Weapon . | . . . . Impact Weapon . | . . . . Slashing Weapon . | . . . . Piercing Weapon . | . . . . Special Melee Weapon . | . . . . Unidentified Prototypes . | . . . . Parts Lost 2 | . . 2 . Power . | . . . . Propulsion 1 | . . 1 . Utility 1 | . . 1 . Weapon . | . . . . Highest Loss Streak 2 | . . 2 . To Critical Strikes . | . . . . Average Backups . | . . . . Power . | . . . . Propulsion . | . . . . Utility . | . . . . Weapon . | . . . . Tool/Special . | . . . . Unused Backups . | . . . . Power . | . . . . Propulsion . | . . . . Utility . | . . . . Weapon . | . . . . Tool/Special . | . . . . Average Slot Usage (%) 60 | . 100 87 . Engine 8 | . 16 11 . Wheel 16 | . 33 18 . Flight 4 | . . 10 . Device 18 | . 33 23 . Protection 1 | . . 4 . Energy Gun 1 | . . 4 . Ballistic Gun 2 | . . 5 . Special Weapon 7 | . 16 6 . Peak Build Rating 14 | 8 8 14 . Average Rating 5 | 2 8 8 . On Entrance 6 | . 8 8 8 Naked Turns 513 | . . 17 496 Heaviest Build 30 | 6 6 30 . Greatest Support 20 | 20 20 20 3 Greatest Overweight (x) 3 | . . 3 . Average Overweight (x) . | . . . . Largest Inventory Capacity 2 | . . 2 . Average Capacity . | . . . . Most Carried 1 | . . 1 . Average Carried . | . . . . Final Capacity 2 | . . 2 . Final Carried . | . . . . Class Distribution -------------------- 44% | Tunneler 35% | Cogmind 12% | Subdweller 8% | Swarmer Dominant Class ---------------- Tunneler | -10/Materials Tunneler | -10/Subcaves Cogmind | -8/Recycling Resources | -11 -10 -10 -8 ----------- Run | Yrd Mat Sub Rec Matter Collected 21 | . . 21 . Remotely . | . . . . Salvage Created 113 | . . 113 . Parts 8 | . . 8 . Haulers Intercepted . | . . . . Recyclers Shooed . | . . . . Parts Field Recycled . | . . . . Retrieved Matter . | . . . . Parts Self-Destructed 6 | . . 6 . Prevented . | . . . . Kills | -11 -10 -10 -8 ------- Run | Yrd Mat Sub Rec Combat Hostiles Destroyed 4 | . . 4 . Melee 1 | . . 1 . Guns 3 | . . 3 . Classes Destroyed 2 | . . 2 . Swarmer 3 | . . 3 . Subdweller 1 | . . 1 . Best Kill Streak 2 | . . 2 . Combat Bots Only 2 | . . 2 . Max Kills in Single Turn 1 | . . 1 . Gunslinging . | . . . . Exploded . | . . . . Melee 1 | . . 1 . Uniques/NPCs Destroyed . | . . . . Combat | -11 -10 -10 -8 -------- Run | Yrd Mat Sub Rec Hostile Shots Fired 125 | . . 117 8 Missed 35 | . . 32 3 Hits 90 | . . 85 5 Projectile 90 | . . 85 5 Critical Strikes 2 | . . 2 . Damage Taken 851 | . . 771 80 Core 264 | . . 184 80 Absorbed by Shields . | . . . . Core Remaining (%) 100 | 100 . . . Volleys Fired 25 | . . 25 . Largest 1 | . . 1 . Hottest 100 | . . 100 . Shots Fired 24 | . . 24 . Gun 20 | . . 20 . Cannon . | . . . . Launcher . | . . . . Special 4 | . . 4 . Kinetic 4 | . . 4 . Thermal 20 | . . 20 . Explosive . | . . . . Electromagnetic . | . . . . Robot Hit Streak 4 | . . 4 . Robot Miss Streak 4 | . . 4 . Penetration Max . | . . . . Secondary Targets . | . . . . Shots Hit Robots 10 | . . 10 . Core Hits 8 | . . 8 . Critical Kills . | . . . . Critical Parts Destroyed . | . . . . Critical Strikes . | . . . . Melee Attacks . | . . . . Impact . | . . . . Slashing . | . . . . Piercing . | . . . . Sneak Attacks . | . . . . Combat Hostiles . | . . . . Follow-up Attacks . | . . . . Damage Inflicted 203 | . . 203 . Guns 173 | . . 173 . Cannons . | . . . . Explosions . | . . . . Melee . | . . . . Ramming 30 | . . 30 . Kinetic 20 | . . 20 . Thermal 153 | . . 153 . Explosive . | . . . . Electromagnetic . | . . . . Impact . | . . . . Slashing . | . . . . Piercing . | . . . . Highest Corruption 1 | . . 1 1 Average Corruption 1 | . . 1 1 Corruption Purged . | . . . . Corruption Blocked . | . . . . Overload Shots . | . . . . Overflow Damage . | . . . . Projectiles . | . . . . Explosions . | . . . . Melee . | . . . . Knockbacks . | . . . . Impact . | . . . . Kinetic . | . . . . Secondary . | . . . . Self-Inflicted Damage 13 | . . 13 . Shots . | . . . . Rammed 7 | . . 7 . Targets Rammed 7 | . . 7 . Kicked . | . . . . Crushed . | . . . . Highest Temperature 466 | . . 466 . Average Temperature 71 | . . 71 . Received Heat Transfer 796 | . . 760 36 Effects 1 | . . 1 . Shutdowns 1 | . . 1 . Siege Activations . | . . . . Martial Activations . | . . . . Shielding Activations . | . . . . Robots Disrupted . | . . . . Combat Hostiles . | . . . . Robots Corrupted . | . . . . Combat Hostiles . | . . . . Parts Fried . | . . . . Impact Corruptions . | . . . . Robots Melted . | . . . . Combat Hostiles . | . . . . Parts Melted . | . . . . Heat Transferred 175 | . . 175 . Parts Sabotaged . | . . . . Parts Stolen . | . . . . Parts Stripped . | . . . . Power Chain Reactions . | . . . . Alert | -11 -10 -10 -8 ------- Run | Yrd Mat Sub Rec Maximum Alert Level 1 | . . . 1 Low Security (%) 80 | 100 100 . 64 Level 1 19 | . . . 35 Level 2 . | . . . . Level 3 . | . . . . Level 4 . | . . . . Level 5 . | . . . . High Security . | . . . . Max Security . | . . . . Peak Influence 275 | . 11 . 275 Initial 16 | . . . 16 Average 92 | . . . 171 Influence Increases 559 | . 21 100 438 Destroy 0b10 Robot/C 140 | . . 60 80 Destroy 0b10 Robot/NC 5 | . . . 5 Destroy Leader 10 | . . 10 . Allied During Kill 28 | . . . 28 Successful Hack 39 | . 21 . 18 Select Force Hacks 270 | . . . 270 Disable Machine 30 | . . . 30 Destroy Structure 7 | . . . 7 Lose Combat Pursuer 30 | . . 30 . Influence Decreases 335 | . 21 66 248 Entered New Map 18 | . . . 18 Time Decay 297 | . 21 46 230 Lost Part 20 | . . 20 . Squads Dispatched . | . . . . Investigation . | . . . . Extermination . | . . . . Reinforcement . | . . . . Assault . | . . . . Garrison . | . . . . Intercept . | . . . . Searches Triggered . | . . . . Construction Impeded . | . . . . Haulers Reinforced . | . . . . Active Scanning Responses . | . . . . Cargo Convoy Interrupts . | . . . . Stealth | -11 -10 -10 -8 --------- Run | Yrd Mat Sub Rec Distress Signals . | . . . . Communications Jammed . | . . . . Distress Signals . | . . . . Times Spotted 25 | . 4 16 5 Peak Tracking Total 6 | . 2 6 2 Tactical Retreats 2 | . . 1 1 Traps | -11 -10 -10 -8 ------- Run | Yrd Mat Sub Rec Traps Triggered . | . . . . Indirectly . | . . . . Trap Hack Attempts . | . . . . Triggered . | . . . . Disarmed . | . . . . Reprogrammed . | . . . . Reused . | . . . . Traps Extracted . | . . . . Installed . | . . . . Triggered . | . . . . Machines | -11 -10 -10 -8 ---------- Run | Yrd Mat Sub Rec Machines Disabled 2 | . . . 2 Max in Single Turn . | . . . . Machines Repaired . | . . . . Machines Dismantled . | . . . . Machines Sabotaged . | . . . . Overloaded Fab Kills . | . . . . Hacking | -11 -10 -10 -8 --------- Run | Yrd Mat Sub Rec Machines Accessed 20 | . 5 . 15 Terminals 11 | . 5 . 6 Fabricators . | . . . . Repair Stations . | . . . . Recycling Units 9 | . . . 9 Scanalyzers . | . . . . Garrison Access . | . . . . Total Hacks 58 | . 25 . 33 Successful 33 | . 14 . 19 Failed 25 | . 11 . 14 Catastrophic 2 | . 1 . 1 Database Lockouts . | . . . . Manual 48 | . 16 . 32 Terminals 47 | . 25 . 22 Fabricators . | . . . . Repair Stations . | . . . . Recycling Units 11 | . . . 11 Scanalyzers . | . . . . Garrison Access . | . . . . Terminal Hacks 9 | . 6 . 3 Robot Analysis 3 | . . . 3 Terminal Index 1 | . 1 . . Locate Traps 1 | . 1 . . Maintenance Status 1 | . 1 . . Patrol Status 1 | . 1 . . Transport Status 1 | . 1 . . Hauler Manifests 1 | . 1 . . Fabricator Hacks . | . . . . Repair Station Hacks . | . . . . Recycling Unit Hacks . | . . . . Scanalyzer . | . . . . Garrison Access Hacks . | . . . . Unauthorized Hacks 24 | . 8 . 16 Terminals 15 | . 8 . 7 Botnet 4 | . 2 . 2 Operators 1 | . 1 . . Skim 10 | . 5 . 5 Fabricators . | . . . . Repair Stations . | . . . . Recycling Units 9 | . . . 9 Tunnel 9 | . . . 9 Scanalyzers . | . . . . Garrison Access . | . . . . Data Cores Recovered . | . . . . Used . | . . . . Hacking Detections 11 | . 5 . 6 Full Trace Events 1 | . . . 1 Feedback Events . | . . . . Feedback Blocked . | . . . . Robot Schematics Acquired . | . . . . Robots Built . | . . . . Authchips . | . . . . Time . | . . . . Total Robot Build Rating . | . . . . Part Schematics Acquired . | . . . . Parts Built . | . . . . Authchips . | . . . . Time . | . . . . Total Part Build Rating . | . . . . Parts Repaired . | . . . . Time . | . . . . Parts Recycled . | . . . . Recycled Matter . | . . . . Retrieved Matter . | . . . . Retrieved Components . | . . . . Parts Scanalyzed . | . . . . Part Schematics Acquired . | . . . . Parts Damaged . | . . . . Bothacking | -11 -10 -10 -8 ------------ Run | Yrd Mat Sub Rec Used RIF Installer . | . . . . Robots Hacked 1 | . . 1 . Non-combat . | . . . . Combat 1 | . . 1 . Robot Hacks Applied 1 | . . 1 . find_shortcuts 1 | . . 1 . Relay Couplers Released . | . . . . Fabnet Peak Effective % . | . . . . Robots Rewired 8 | . . . 8 Allies Hacked . | . . . . Hacks Repelled . | . . . . Allies | -11 -10 -10 -8 -------- Run | Yrd Mat Sub Rec Total Allies 8 | . . . 8 Largest Group 8 | . . . 8 Highest-Rated Group 163 | . . . 163 Highest-Rated Ally 34 | . . . 34 Total Orders . | . . . . Ally Attacks 12 | . . . 12 Total Damage 252 | . . . 252 Kills 6 | . . . 6 Allies Corrupted . | . . . . Allies Melted . | . . . . Intel | -11 -10 -10 -8 ------- Run | Yrd Mat Sub Rec Active Infowar (turns) 823 | 4 416 403 . Optics 178 | . . 178 . Terrain 645 | 4 416 225 . Seismic 645 | 4 416 225 . Robot Analysis Total 6 | 1 . 2 3 Derelict Logs Recovered 2 | . . 2 . Drone Launches . | . . . . Drone Recoveries . | . . . . Exploration | -11 -10 -10 -8 ------------- Run | Yrd Mat Sub Rec Turns Passed 1462 | 11 416 539 496 Spaces Moved 1511 | 19 316 544 632 Core 660 | 12 . 16 632 Treads . | . . . . Legs . | . . . . Wheels 683 | 7 316 360 . Hover . | . . . . Flight 168 | . . 168 . Fastest Speed 37 | 50 80 37 50 Average Speed 65 | 61 80 74 50 Slowest Speed 200 | 80 80 200 50 Overloaded Moves . | . . . . Propulsion Burnouts . | . . . . Robots Hopped . | . . . . Potential Cave-ins . | . . . . Cave-ins Triggered . | . . . . Exploration Rate (%) 44 | 3 56 24 94 Regions Visited 3 Branch Regions 2 Pre-discovered Areas 11 | . 2 . 9 Known Exits Taken . | . . . . Unknown Exits Taken 3 | 1 1 1 . Scrap Searched 3 | . . 3 . Spaces Dug . | . . . . Terrain Destroyed . | . . . . Melee . | . . . . Projectile . | . . . . AOE . | . . . . Terrain Rammed . | . . . . Walls Destroyed . | . . . . Machines Disabled . | . . . . Actions | -11 -10 -10 -8 --------- Run | Yrd Mat Sub Rec Total 1955 | 18 478 647 812 Wait 346 | . 157 66 123 Move 1508 | 18 315 543 632 Hop . | . . . . Pick Up . | . . . . Fast Attach . | . . . . Attach . | . . . . Detach . | . . . . Swap . | . . . . Drop 1 | . . 1 . Fire 25 | . . 25 . Melee . | . . . . Ram 7 | . . 7 . Kick . | . . . . Crush . | . . . . Escape Stasis . | . . . . Rewire 58 | . . 1 57 Trap . | . . . . Miscellaneous 10 | . 6 4 . Route ------- -11/Scrapyard -10/Materials (discovered 5 exits: *Mat x3 / [*Min] / [*Sub]) -10/Subcaves (discovered 2 exits: Mat / *Rec) -8/Recycling (discovered 1 exit: [*Fac]) History --------- Turn | Location | Event 4 | -11/Scrapyard | Discovered new exit (range 16) 12 | -11/Scrapyard | Entered Materials 70 | -10/Materials | Discovered new exit (range 13) 117 | -10/Materials | Discovered new exit (range 11) 170 | -10/Materials | Discovered new exit (range 14) 204 | -10/Materials | Discovered new exit (range 4) 246 | -10/Materials | Learned location of 1 exit from Storage 285 | -10/Materials | Learned Storage emergency access door positions 336 | -10/Materials | Identified exit to Materials 346 | -10/Materials | Learned location of Recycling (-8) 368 | -10/Materials | Loaded intel: 2 recycling unit locations 428 | -10/Materials | Entered Subcaves 429 | -10/Subcaves | Approached by a straggling Scientist 429 | -10/Subcaves | Identified exit to Materials 459 | -10/Subcaves | Learned location of 1 exit from Materials 503 | -10/Subcaves | Shifting Twisted Machinery released Sub. Beam Cannon 505 | -10/Subcaves | Shifting Twisted Machinery released Sub. Power Source 951 | -10/Subcaves | Discovered new exit (range 13) 959 | -10/Subcaves | Core integrity fell below 50% 967 | -10/Subcaves | Entered Recycling 1091 | -8/Recycling | Core integrity fell below 20% 1323 | -8/Recycling | Discovered new exit (range 16) 1463 | -8/Recycling | Destroyed by Y-45 Defender with Beam Rifle Last Messages --------------- Trojan loaded successfully. Testing... Terminal linked with 4 systems. Skimming routine engaged. Thanks from A0-MCA. >>Analysis(W-25 Informer) Downloading analysis... W-25 Informer Tier: 3 An upgrade to the W-16 Scout, Informers improve on the Scout's jamming range. As unarmed surveillance units rather than frontline combatants, agility is preferred over additional armor to protect their systems from electromagnetic damage. 01422_ >> SKIM: Stored Recycling entrances (x1). 01427_ Slug penetrates Wall. 01427_ Destroyed Broken Sub. Laser. 01434_ Slug penetrates CH-7F4(R). 01434_ CH-7F4(R) destroyed. 01439_ R-06 Scavenger collects Mak. Targeting Computer. 01443_ R-06 Scavenger collects Spk. Treads. 01463_ Y-45 Defender springs to life. Map ----- +----------------------------------------------------+ | ?????????????????????????????????????????????????? | | ?????????????????????????????????????????????????? | | ?????????????????????????????????????????????????? | | ?????????????????????????????????????????????????? | | ?????????????????????????????????????????????????? | | ?????????????????????????????????????????????????? | | ?????????????????????????????????????????????????? | | ########????????###?????#####??######????????????? | | ! #??????## ####### #?? #????????????? | | !! ! #??????# # % #? " #????????????? | | ! ! #??????# # #? ""#????????????? | | #??????# # # ""#????????????? | | ! #??????# # # """#????????????? | | ! ! #??????# / + "" #????????????? | | #####??# # # """#????????????? | | # #### # # """#????????????? | | + + # gr#? """#????????????? | | ! # #### # #? " #????????????? | | ## ##??####+#####hh #?? #????????????? | | ## #??????# #???# h ##+######????????????? | | ##+####### #??????# #???# gd #?????????????????? | | #???# ######## #???# g l #?????????????????? | | #???# """ #???# ##????????????????? | | #???# "Y" #???# Y#????????????????? | | #???# #???# ##????????????????? | | #???# #???#@ #?????????????????? | | ##### #???# ####?????????????????? | | #???# #????????????????????? | | ##+##### #???## ##????????????????????? | | #?# #????# #?????????????????????? | | "" #?# ######+####??????????????????? | | "" #?# """ ##%! #??????????????????? | | "" #?# """"" ## ! #??????????????????? | | #?# """"" ## #???######?????????? | | #?# """"" ## #???# #?????????? | | #?# """ ## #???# #?????????? | | ######## ## ! ! ##### #?????????? | | # ! % !/ + #?????????? | | """ # % ! ##### #?????????? | | """"" # #???# #?????????? | | Y"######## """"" #####+####???# #?????????? | | ""#??????# """"" #???# #??????######?????????? | | ###??????# """ ###?# #?????????????????????? | | #???????# #?# #?????????????????????? | | #???????# #?# #######???????????????? | | #????#### """ #?# #???????????????? | | ###### ## """"" ####+#### #???????????????? | | + """" # # #???????????????? | | ####### """" # # #???????????????? | | #?????# """ # # #???????????????? | +----------------------------------------------------+ Best States ------------- Heat Dissipation 25 Coolant Potential 50 Energy Generation 20 Energy Capacity 150 Matter Stores 100 Matter Capacity 100 Sight Range 19 Terrain Scan Range 16 Terrain Scan Density 10 Armor Coverage 800 Evasion (%) 62 Item Schematics ----------------- None Robot Schematics ------------------ None Fabricated ------------ Nothing Repaired ---------- Nothing Alien Tech Used ----------------- None Achievements -------------- None Challenges ------------ None Polymind | -11 -10 -10 -8 ---------- Run | Yrd Mat Sub Rec Hosts 3 | 1 . 2 . Combat Hostiles 2 | . . 2 . Allies . | . . . . Unique Host Classes 3 | 1 . 2 . Average Host Suspicion 59 | 1 40 75 . Unsuspicious Activity 108 | 2 30 76 . Returns to Shadow . | . . . . Fuzzy Dispatches . | . . . . Protomatter Created 60 | . . 4 56 Used 44 | 5 . 39 . Decayed . | . . . . Highest Spend 33 | 5 . 33 . Top 5 Hosts by Kills: CH-7F4(R) (-10/Subcaves: 3) S-10 Pest (-10/Subcaves: 1) Game ------ Seed GravitonKineticFlail Manual? 0 Play Time 00:24:50 Cumulative 352.5 hours Start 2025.06.07 @ 22:57:50 End 2025.06.07 @ 23:21:05 Sessions 1 Manual Loads 0 Difficulty Rogue Special Mode Winter2022/Polymind Game No. 167 Rogue 124 Adventurer 43 Explorer 0 Win Type - Total 7 Types 4/0/1/0/0/0/0/1/0/1 Lore% 85 Gallery% 74 Achievement% 66 Wizard Run 0 Options --------- Layout 0 ASCII 0 Keyboard 0 Movement Numpad Keybinds 0 Fullscreen 1 Font 24/Smallcaps Map View 76x50 Zoom Use 0% Tactical HUD 1 Map Filters NONE Filters NONE Steam 1 RUN: 363c2859-ff5f-4620-9579-b9aa8c04bfa3